fUST/lending_fUST_20250102
["ID","MTS","AMOUNT","RATE_DAILY","PERIOD"]
[347440492,1735815032767,-501.15066035,0.00019178,2]
[347440494,1735815032776,-500.77586949,0.00019178,2]
[347440496,1735815032786,-500.0,0.00019178,2]
[347440498,1735815032795,-499.3553919,0.00019178,2]
[347440500,1735815032805,-500.0,0.00019178,2]
[347440502,1735815032814,-500.0,0.00019178,2]
[347440504,1735815032823,-500.72350205,0.00019178,2]
[347440506,1735815032833,-607.13649725,0.00019178,2]
[347440508,1735815032843,-500.45842542,0.00019178,2]
[347440510,1735815032852,-500.0,0.00019178,2]
[347440512,1735815032861,-500.0,0.00019178,2]
[347440514,1735815032871,-500.76025988,0.00019178,2]
[347440516,1735815032880,-224.46316665,0.00019178,2]
[347440517,1735815032890,-500.0,0.00019178,2]
[347440519,1735815032899,-500.0,0.00019178,2]
[347440521,1735815032909,-471.50843946,0.00019178,2]
[347440523,1735815032919,-500.0,0.00019178,2]
[347440525,1735815032929,-500.0,0.00019178,2]
[347440527,1735815032938,-500.0,0.00019178,2]
[347440529,1735815032948,-503.92428369,0.00019178,2]
[347440531,1735815032958,-500.0,0.00019178,2]
[347440533,1735815032968,-500.0,0.00019178,2]
[347440535,1735815032977,-500.0,0.00019178,2]
[347440537,1735815032986,-500.0,0.00019178,2]
[347440539,1735815032996,-500.0,0.00019178,2]
[347440541,1735815033005,-500.0,0.00019178,2]
[347440543,1735815033014,-500.0,0.00019178,2]
[347440545,1735815033024,-500.0,0.00019178,2]
[347440547,1735815033034,-500.0,0.00019178,2]
[347440549,1735815033044,-500.0,0.00019178,2]
[347440551,1735815033054,-500.36486962,0.00019178,2]
[347440553,1735815033064,-500.0,0.00019178,2]
[347440555,1735815033074,-500.0,0.00019178,2]
[347440557,1735815033084,-500.0,0.00019178,2]
[347440559,1735815033095,-500.0,0.00019178,2]
[347440561,1735815033105,-500.0,0.00019178,2]
[347440563,1735815033115,-500.0,0.00019178,2]
[347440565,1735815033124,-500.0,0.00019178,2]
[347440567,1735815033138,-500.0,0.00019178,2]
[347440569,1735815033149,-503.92296452,0.00019178,2]
[347440571,1735815033159,-500.0,0.00019178,2]
[347440573,1735815033169,-500.0,0.00019178,2]
[347440575,1735815033179,-500.0,0.00019178,2]
[347440577,1735815033188,-500.0,0.00019178,2]
[347440579,1735815033197,-501.33533788,0.00019178,2]
[347440581,1735815033207,-500.0,0.00019178,2]
[347440583,1735815033216,-500.0,0.00019178,2]
[347440584,1735815033225,-500.0,0.00019178,2]
[347440587,1735815033235,-500.0,0.00019178,2]
[347440589,1735815033244,-500.0,0.00019178,2]
[347440590,1735815033254,-502.7031528,0.00019178,2]
[347440592,1735815033263,-500.0,0.00019178,2]
[347440594,1735815033273,-500.0,0.00019178,2]
[347440597,1735815033282,-500.0,0.00019178,2]
[347440599,1735815033293,-431.62,0.00019178,2]
[347440601,1735815033303,-500.0,0.00019178,2]
[347440603,1735815033315,-500.0,0.00019178,2]
[347440605,1735815033325,-500.0,0.00019178,2]
[347440607,1735815033335,-500.0,0.00019178,2]
[347440608,1735815033345,-500.0,0.00019178,2]
[347440610,1735815033354,-500.0,0.00019178,2]
[347440612,1735815033363,-500.0,0.00019178,2]
[347440615,1735815033373,-500.0,0.00019178,2]
[347440617,1735815033386,-500.0,0.00019178,2]
[347440619,1735815033395,-500.0,0.00019178,2]
[347440621,1735815033405,-500.0,0.00019178,2]
[347440623,1735815033414,-500.0,0.00019178,2]
[347440624,1735815033423,-500.0,0.00019178,2]
[347440627,1735815033433,-500.0,0.00019178,2]
[347440629,1735815033444,-500.0,0.00019178,2]
[347440630,1735815033453,-361.03802067,0.00019178,2]
[347440632,1735815033463,-500.0,0.00019178,2]
[347440634,1735815033472,-500.0,0.00019178,2]
[347440636,1735815033482,-500.0,0.00019178,2]
[347440638,1735815033492,-500.0,0.00019178,2]
[347440640,1735815033501,-500.0,0.00019178,2]
[347440642,1735815033510,-498.59,0.00019178,2]
[347440644,1735815033520,-506.57882795,0.00019178,2]
[347440646,1735815033530,-500.0,0.00019178,2]
[347440648,1735815033539,-500.0,0.00019178,2]
[347440650,1735815033548,-500.0,0.00019178,2]
[347440652,1735815033558,-500.0,0.00019178,2]
[347440654,1735815033568,-500.0,0.00019178,2]
[347440656,1735815033577,-500.0,0.00019178,2]
[347440658,1735815033587,-500.0,0.00019178,2]
[347440660,1735815033596,-500.0,0.00019178,2]
[347440662,1735815033606,-228.23623091,0.00019178,2]
[347440664,1735815033615,-500.0,0.00019178,2]
[347440666,1735815033625,-500.0,0.00019178,2]
[347440668,1735815033635,-500.0,0.00019178,2]
[347440670,1735815033645,-500.0,0.00019178,2]
[347440672,1735815033654,-194.51079241,0.00019178,2]
[347440674,1735815033664,-500.0,0.00019178,2]
[347440676,1735815033675,-500.0,0.00019178,2]
[347440678,1735815033685,-500.0,0.00019178,2]
[347440680,1735815033695,-500.0,0.00019178,2]
[347440682,1735815033704,-500.0,0.00019178,2]
[347440684,1735815033713,-500.0,0.00019178,2]
[347440685,1735815033723,-500.0,0.00019178,2]
[347440687,1735815033732,-500.0,0.00019178,2]
[347440689,1735815033742,-500.0,0.00019178,2]
[347440690,1735815033752,-500.0,0.00019178,2]
[347440691,1735815033761,-500.0,0.00019178,2]
[347440692,1735815033771,-500.0,0.00019178,2]
[347440693,1735815033783,-500.0,0.00019178,2]
[347440694,1735815033793,-500.0,0.00019178,2]
[347440695,1735815033802,-500.0,0.00019178,2]
[347440696,1735815033811,-500.0,0.00019178,2]
[347440697,1735815033820,-500.0,0.00019178,2]
[347440699,1735815033830,-500.0,0.00019178,2]
[347440701,1735815033841,-490.86485386,0.00019178,2]
[347440703,1735815033851,-389.55224542,0.00019178,2]
[347440705,1735815033861,-500.0,0.00019178,2]
[347440706,1735815033871,-500.0,0.00019178,2]
[347440708,1735815033882,-500.0,0.00019178,2]
[347440709,1735815033892,-500.0,0.00019178,2]
[347440710,1735815033903,-501.40657319,0.00019178,2]
[347440712,1735815033913,-500.0,0.00019178,2]
[347440714,1735815033922,-500.0,0.00019178,2]
[347440716,1735815033932,-554.59007907,0.00019178,2]
[347440717,1735815033941,-500.0,0.00019178,2]
[347440718,1735815033951,-500.0,0.00019178,2]
[347440719,1735815033960,-500.0,0.00019178,2]
[347440720,1735815033969,-500.0,0.00019178,2]
[347440722,1735815033978,-500.0,0.00019178,2]
[347440723,1735815033987,-502.68193961,0.00019178,2]
[347440724,1735815033997,-500.0,0.00019178,2]
[347440725,1735815034005,-500.0,0.00019178,2]
[347440726,1735815034015,-508.96381428,0.00019178,2]
[347440727,1735815034024,-500.0,0.00019178,2]
[347440728,1735815034034,-500.0,0.00019178,2]
[347440729,1735815034043,-500.0,0.00019178,2]
[347440730,1735815034053,-510.04406223,0.00019178,2]
[347440731,1735815034063,-500.0,0.00019178,2]
[347440732,1735815034072,-500.0,0.00019178,2]
[347440733,1735815034082,-500.0,0.00019178,2]
[347440734,1735815034091,-500.0,0.00019178,2]
[347440735,1735815034101,-500.0,0.00019178,2]
[347440736,1735815034110,-500.0,0.00019178,2]
[347440737,1735815034120,-500.0,0.00019178,2]
[347440738,1735815034129,-500.0,0.00019178,2]
[347440739,1735815034138,-151.0,0.00019178,2]
[347440740,1735815034148,-169.405968,0.00019178,2]
[347440741,1735815034157,-500.0,0.00019178,2]
[347440742,1735815034167,-501.29350894,0.00019178,2]
[347440743,1735815034178,-500.0,0.00019178,2]
[347440744,1735815034187,-500.0,0.00019178,2]
[347440745,1735815034196,-500.0,0.00019178,2]
[347440746,1735815034206,-500.0,0.00019178,2]
[347440747,1735815034216,-170.55145973,0.00019178,2]
[347440748,1735815034225,-500.0,0.00019178,2]
[347440749,1735815034235,-500.0,0.00019178,2]
[347440750,1735815034244,-502.53872662,0.00019178,2]
[347440751,1735815034254,-500.0,0.00019178,2]
[347440752,1735815034263,-482.96668666,0.00019178,2]
[347440753,1735815034273,-500.0,0.00019178,2]
[347440754,1735815034282,-500.0,0.00019178,2]
[347440755,1735815034294,-500.0,0.00019178,2]
[347440756,1735815034306,-500.0,0.00019178,2]
[347440757,1735815034315,-500.0,0.00019178,2]
[347440758,1735815034325,-500.0,0.00019178,2]
[347440759,1735815034336,-500.0,0.00019178,2]
[347440760,1735815034345,-500.0,0.00019178,2]
[347440761,1735815034354,-500.0,0.00019178,2]
[347440762,1735815034363,-500.0,0.00019178,2]
[347440763,1735815034374,-500.0,0.00019178,2]
[347440764,1735815034386,-510.46758541,0.00019178,2]
[347440765,1735815034395,-500.0,0.00019178,2]
[347440766,1735815034404,-500.0,0.00019178,2]
[347440767,1735815034413,-500.0,0.00019178,2]
[347440768,1735815034423,-492.76185566,0.00019178,2]
[347440769,1735815034432,-500.0,0.00019178,2]
[347440770,1735815034441,-500.0,0.00019178,2]
[347440771,1735815034450,-4793.71,0.00019178,2]
[347440772,1735815034460,-500.0,0.00019178,2]
[347440773,1735815034470,-500.0,0.00019178,2]
[347440774,1735815034479,-500.0,0.00019178,2]
[347440775,1735815034488,-500.0,0.00019178,2]
[347440776,1735815034497,-500.0,0.00019178,2]
[347440777,1735815034507,-500.0,0.00019178,2]
[347440778,1735815034516,-166.01739077,0.00019178,2]
[347440779,1735815034525,-500.0,0.00019178,2]
[347440780,1735815034534,-325.9334559,0.00019178,2]
[347440781,1735815034544,-685.32,0.00019178,2]
[347440782,1735815034553,-611.7,0.00019178,2]
[347440783,1735815034562,-500.0,0.00019178,2]
[347440784,1735815034572,-500.0,0.00019178,2]
[347440785,1735815034581,-500.0,0.00019178,2]
[347440786,1735815034590,-500.0,0.00019178,2]
[347440787,1735815034599,-500.0,0.00019178,2]
[347440788,1735815034609,-500.0,0.00019178,2]
[347440789,1735815034618,-500.0,0.00019178,2]
[347440790,1735815034629,-501.38029984,0.00019178,2]
[347440791,1735815034639,-668.76,0.00019178,2]
[347440792,1735815034649,-500.0,0.00019178,2]
[347440793,1735815034659,-506.01926901,0.00019178,2]
[347440794,1735815034668,-501.70967062,0.00019178,2]
[347440795,1735815034678,-500.0,0.00019178,2]
[347440796,1735815034687,-594.43822785,0.00019178,2]
[347440797,1735815034697,-256.84753845,0.00019178,2]
[347440798,1735815034714,-500.0,0.00019178,2]
[347440799,1735815034727,-500.0,0.00019178,2]
[347440800,1735815034737,-500.0,0.00019178,2]
[347440801,1735815034746,-500.0,0.00019178,2]
[347440802,1735815034755,-504.15733938,0.00019178,2]
[347440803,1735815034765,-500.0,0.00019178,2]
[347440804,1735815034774,-505.47608984,0.00019178,2]
[347440805,1735815034784,-500.0,0.00019178,2]
[347440806,1735815034794,-500.0,0.00019178,2]
[347440807,1735815034803,-500.0,0.00019178,2]
[347440808,1735815034813,-500.0,0.00019178,2]
[347440809,1735815034822,-502.04844765,0.00019178,2]
[347440810,1735815034832,-451.29721485,0.00019178,2]
[347440811,1735815034841,-500.0,0.00019178,2]
[347440812,1735815034851,-500.0,0.00019178,2]
[347440813,1735815034860,-500.0,0.00019178,2]
[347440814,1735815034870,-500.0,0.00019178,2]
[347440815,1735815034879,-501.70442386,0.00019178,2]
[347440816,1735815034890,-500.0,0.00019178,2]
[347440817,1735815034899,-500.0,0.00019178,2]
[347440818,1735815034909,-506.82534137,0.00019178,2]
[347440819,1735815034918,-500.87683732,0.00019178,2]
[347440820,1735815034927,-500.0,0.00019178,2]
[347440821,1735815034937,-500.0,0.00019178,2]
[347440822,1735815034947,-546.25966313,0.00019178,2]
[347440823,1735815034956,-533.66,0.00019178,2]
[347440824,1735815034966,-500.0,0.00019178,2]
[347440825,1735815034976,-500.0,0.00019178,2]
[347440826,1735815034986,-500.0,0.00019178,2]
[347440827,1735815035137,-176.79,0.00019178,2]
[347440828,1735815035147,-500.0,0.00019178,2]
[347440829,1735815035157,-500.0,0.00019178,2]
[347440830,1735815035167,-500.0,0.00019178,2]
[347440831,1735815035176,-500.0,0.00019178,2]
[347440832,1735815035185,-500.0,0.00019178,2]
[347440833,1735815035195,-151.0,0.00019178,2]
[347440834,1735815035204,-151.0,0.00019178,2]
[347440835,1735815035213,-500.0,0.00019178,2]
[347440836,1735815035223,-500.0,0.00019178,2]
[347440837,1735815035232,-500.0,0.00019178,2]
[347440838,1735815035242,-504.69334862,0.00019178,2]
[347440839,1735815035251,-500.0,0.00019178,2]
[347440840,1735815035260,-151.0,0.00019178,2]
[347440841,1735815035269,-151.0,0.00019178,2]
[347440842,1735815035279,-500.0,0.00019178,2]
[347440843,1735815035289,-500.0,0.00019178,2]
[347440844,1735815035302,-500.0,0.00019178,2]
[347440845,1735815035311,-500.0,0.00019178,2]
[347440846,1735815035320,-400.05346969,0.00019178,2]
[347440847,1735815035329,-7226.3,0.00019178,2]
[347440848,1735815035340,-500.0,0.00019178,2]
[347440849,1735815035349,-608.01,0.00019178,2]
[347440850,1735815035360,-500.0,0.00019178,2]
[347440851,1735815035371,-500.0,0.00019178,2]
[347440852,1735815035381,-500.0,0.00019178,2]
[347440853,1735815035390,-500.0,0.00019178,2]
[347440854,1735815035399,-500.0,0.00019178,2]
[347440855,1735815035409,-500.0,0.00019178,2]
[347440856,1735815035418,-500.0,0.00019178,2]
[347440857,1735815035430,-587.81,0.00019178,2]
[347440858,1735815035440,-500.0,0.00019178,2]
[347440859,1735815035452,-500.0,0.00019178,2]
[347440860,1735815035462,-500.0,0.00019178,2]
[347440861,1735815035472,-500.0,0.00019178,2]
[347440862,1735815035481,-500.17744206,0.00019178,2]
[347440863,1735815035490,-500.0,0.00019178,2]
[347440864,1735815035499,-500.0,0.00019178,2]
[347440865,1735815035509,-500.0,0.00019178,2]
[347440866,1735815035519,-500.0,0.00019178,2]
[347440867,1735815035528,-500.0,0.00019178,2]
[347440868,1735815035538,-500.0,0.00019178,2]
[347440869,1735815035547,-621.95393674,0.00019178,2]
[347440870,1735815035557,-500.0,0.00019178,2]
[347440871,1735815035566,-500.0,0.00019178,2]
[347440872,1735815035575,-506.78078016,0.00019178,2]
[347440873,1735815035585,-500.0,0.00019178,2]
[347440874,1735815035594,-500.0,0.00019178,2]
[347440875,1735815035603,-500.0,0.00019178,2]
[347440876,1735815035613,-1958.98,0.00019178,2]
[347440877,1735815035622,-500.0,0.00019178,2]
[347440878,1735815035632,-500.0,0.00019178,2]
[347440879,1735815035641,-500.0,0.00019178,2]
[347440880,1735815035651,-500.0,0.00019178,2]
[347440881,1735815035660,-500.0,0.00019178,2]
[347440882,1735815035669,-500.0,0.00019178,2]
[347440883,1735815035679,-500.0,0.00019178,2]
[347440884,1735815035687,-373.38702149,0.00019178,2]
[347440885,1735815035697,-499.30821559,0.00019178,2]
[347440886,1735815035706,-500.0,0.00019178,2]
[347440887,1735815035715,-166.555737,0.00019178,2]
[347440888,1735815035724,-371.26597042,0.00019284,2]
[347440889,1735815035734,-159.8212751,0.000194,2]
[347440890,1735815035743,-214.4778337,0.000194,2]
[347440891,1735815035752,-352.5613876,0.000194,2]
[347440892,1735815035762,-204.4151056,0.000194,2]
[347440893,1735815035771,-182.36386,0.0001945,2]
[347440894,1735815035781,-182.36386,0.0001945,2]
[347440895,1735815035790,-151.0,0.0001945,2]
[347440896,1735815035800,-151.0,0.00019451,2]
[347440897,1735815035809,-330.803929,0.00019451,2]
[347440898,1735815035818,-330.803929,0.00019451,2]
[347440899,1735815035827,-500.0,0.00019452,3]
[347440900,1735815035837,-500.0,0.00019452,3]
[347440901,1735815035846,-610.93507429,0.00019452,3]
[347440902,1735815035855,-500.0,0.00019452,3]
[347440903,1735815035864,-221.11,0.00019452,3]
[347440904,1735815035873,-500.0,0.00019452,3]
[347440905,1735815035884,-500.0,0.00019452,3]
[347440906,1735815035893,-500.0,0.00019452,3]
[347440907,1735815035902,-500.0,0.00019452,3]
[347440908,1735815035911,-500.0,0.00019452,3]
[347440909,1735815035921,-277.606569,0.00019452,2]
[347440910,1735815035930,-500.0,0.00019452,3]
[347440911,1735815035939,-277.606569,0.00019452,2]
[347440912,1735815035948,-500.0,0.00019452,3]
[347440913,1735815035957,-500.0,0.00019452,3]
[347440914,1735815035966,-176.595803,0.00019452,2]
[347440915,1735815035976,-176.595803,0.00019452,2]
[347440916,1735815035986,-151.0,0.00019452,2]
[347440917,1735815035995,-500.0,0.00019452,3]
[347440918,1735815036005,-500.0,0.00019452,3]
[347440919,1735815036014,-500.0,0.00019452,3]
[347440920,1735815036023,-500.0,0.00019452,3]
[347440921,1735815036033,-320.83,0.00019452,3]
[347440922,1735815036042,-272.16577789,0.00019452,3]
[347440923,1735815036051,-500.0,0.00019452,3]
[347440924,1735815036060,-500.0,0.00019452,3]
[347440925,1735815036069,-500.0,0.00019452,3]
[347440926,1735815036078,-182.36386,0.00019452,2]
[347440927,1735815036087,-182.36386,0.00019452,2]
[347440928,1735815036096,-500.0,0.00019452,3]
[347440929,1735815036105,-500.0,0.00019452,3]
[347440930,1735815036114,-151.0,0.00019452,2]
[347440931,1735815036123,-500.0,0.00019452,3]
[347440932,1735815036133,-86.84008272,0.00019452,3]
[347440949,1735815038210,-151.0,0.00019178,2]
[347440950,1735815038220,-116.6396332,0.00019178,2]
[347440951,1735815038232,-34.3603668,0.00019178,2]
[347440952,1735815038242,-413.15991728,0.00019452,3]
[347440953,1735815038251,-280.75,0.00019452,3]
[347440954,1735815038261,-4793.71,0.00019452,3]
[347440955,1735815038271,-222.21,0.00019452,3]
[347440956,1735815038279,-151.0,0.00019452,2]
[347440957,1735815038289,-685.32,0.00019452,3]
[347440958,1735815038300,-611.7,0.00019452,3]
[347440959,1735815038309,-573.86663736,0.00019452,3]
[347440960,1735815038318,-500.0,0.00019452,3]
[347440961,1735815038328,-668.76,0.00019452,3]
[347440962,1735815038337,-500.0,0.00019452,3]
[347440963,1735815038348,-151.0,0.00019452,2]
[347440964,1735815038357,-262.38,0.00019452,3]
[347440965,1735815038366,-500.0,0.00019452,3]
[347440966,1735815038376,-155.477721,0.00019452,2]
[347440967,1735815038386,-417.01,0.00019452,3]
[347440968,1735815038395,-6778.43506107,0.00019452,3]
[347440978,1735815040071,-322.0,0.00019178,2]
[347440979,1735815040081,-447.86493893,0.00019452,3]
[347440980,1735815040090,-500.0,0.00019452,3]
[347440981,1735815040099,-402.21,0.00019452,3]
[347440982,1735815040108,-587.81,0.00019452,3]
[347440983,1735815040118,-500.0,0.00019452,3]
[347440984,1735815040127,-500.0,0.00019452,3]
[347440985,1735815040137,-232.46,0.00019452,3]
[347440986,1735815040146,-500.0,0.00019452,3]
[347440987,1735815040155,-500.0,0.00019452,3]
[347440988,1735815040164,-500.0,0.00019452,3]
[347440989,1735815040174,-421.87424711,0.00019452,3]
[347440990,1735815040186,-1537.10575289,0.00019452,3]
[347440991,1735815040195,-500.0,0.00019452,3]
[347440992,1735815040204,-500.0,0.00019452,3]
[347440993,1735815040212,-500.0,0.00019452,3]
[347440995,1735815040221,-151.0,0.00019452,2]
[347440996,1735815040230,-371.26597042,0.00019489,2]
[347440997,1735815040239,-214.4778337,0.000195,2]
[347440998,1735815040248,-214.4778337,0.000195,2]
[347440999,1735815040256,-643.039,0.0001952,2]
[347441000,1735815040266,-330.803929,0.0001952,2]
[347441001,1735815040275,-330.803929,0.0001952,2]
[347441002,1735815040284,-1613.32018038,0.00019544,2]
[347441003,1735815040294,-500.0,0.00019573,2]
[347441004,1735815040306,-500.0,0.00019573,2]
[347441005,1735815040315,-500.0,0.00019573,2]
[347441006,1735815040324,-419.86786857,0.00019599,2]
[347441007,1735815040333,-105998.80736833,0.000196,4]
[347441008,1735815040345,-9619.90328185,0.000196,4]
[347441009,1735815040356,-1546.78600054,0.000196,4]
[347441010,1735815040367,-2006.83990656,0.000196,4]
[347441011,1735815040379,-366.0670543,0.000196,4]
[347441019,1735815043322,-61842.30831913,0.000196,4]
[347441020,1735815043331,-151.0,0.000196,2]
[347441021,1735815043340,-151.0,0.000196,2]
[347441022,1735815043351,-151.0,0.000196,2]
[347441023,1735815043360,-402.325971,0.000196,2]
[347441024,1735815043370,-402.325971,0.000196,2]
[347441025,1735815043381,-151.0,0.000196,2]
[347441026,1735815043391,-151.0,0.000196,2]
[347441028,1735815043400,-924.919644,0.000196,2]
[347441029,1735815043409,-1009.031224,0.000196,2]
[347441030,1735815043419,-1009.031224,0.000196,2]
[347441032,1735815043429,-277.606569,0.000196,2]
[347441033,1735815043440,-277.606569,0.000196,2]
[347441034,1735815043450,-176.595803,0.000196,2]
[347441035,1735815043459,-176.595803,0.000196,2]
[347441036,1735815043469,-151.0,0.000196,2]
[347441037,1735815043478,-330.803929,0.000196,2]
[347441038,1735815043487,-330.803929,0.000196,2]
[347441039,1735815043497,-182.36386,0.000196,2]
[347441040,1735815043506,-182.36386,0.000196,2]
[347441041,1735815043515,-151.0,0.000196,2]
[347441042,1735815043525,-151.0,0.000196,2]
[347441043,1735815043535,-85392.47,0.000196,4]
[347441044,1735815043543,-3344.24,0.000196,2]
[347441045,1735815043552,-8917.78,0.000196,2]
[347441046,1735815043562,-10936.32,0.000196,2]
[347441047,1735815043571,-151.0,0.000196,2]
[347441048,1735815043581,-371.26597042,0.00019695,2]
[347441049,1735815043591,-284.82,0.000197,2]
[347441050,1735815043600,-500.0,0.00019721,2]
[347441051,1735815043609,-500.0,0.00019726,3]
[347441052,1735815043618,-500.0,0.00019726,3]
[347441053,1735815043627,-504.96,0.00019726,3]
[347441054,1735815043638,-500.0,0.00019726,3]
[347441055,1735815043647,-500.0,0.00019726,3]
[347441056,1735815043657,-359.02,0.00019726,3]
[347441057,1735815043666,-220.35,0.00019726,3]
[347441058,1735815043675,-500.0,0.00019726,3]
[347441059,1735815043684,-294.23564932,0.00019726,3]
[347441060,1735815043693,-500.0,0.00019726,3]
[347441061,1735815043702,-500.0,0.00019726,3]
[347441062,1735815043711,-500.0,0.00019726,3]
[347441063,1735815043721,-426.4,0.00019726,3]
[347441064,1735815043730,-500.0,0.00019726,3]
[347441065,1735815043739,-4793.71,0.00019726,3]
[347441066,1735815043749,-685.32,0.00019726,3]
[347441067,1735815043758,-611.7,0.00019726,3]
[347441068,1735815043767,-668.76,0.00019726,3]
[347441069,1735815043777,-500.0,0.00019726,3]
[347441070,1735815043786,-500.0,0.00019726,3]
[347441071,1735815043796,-7226.3,0.00019726,3]
[347441072,1735815043805,-500.0,0.00019726,3]
[347441073,1735815043814,-587.81,0.00019726,3]
[347441074,1735815043822,-500.0,0.00019726,3]
[347441075,1735815043831,-500.0,0.00019726,3]
[347441076,1735815043845,-500.0,0.00019726,3]
[347441077,1735815043854,-500.0,0.00019726,3]
[347441078,1735815043864,-1958.98,0.00019726,3]
[347441079,1735815043874,-500.0,0.00019726,3]
[347441080,1735815043884,-500.0,0.00019726,3]
[347441081,1735815043893,-500.0,0.00019726,3]
[347441082,1735815043903,-151.0,0.00019726,2]
[347441083,1735815043912,-420.0,0.00019857,2]
[347441084,1735815043921,-371.26597042,0.000199,2]
[347441085,1735815043931,-157.61083007,0.000199,2]
[347441086,1735815043941,-153.0,0.00019945,2]
[347441087,1735815043950,-153.0,0.00019945,2]
[347441088,1735815043959,-598.54042202,0.00019999,4]
[347441089,1735815043968,-12598.0,0.0002,2]
[347441090,1735815043978,-154.0,0.0002,60]
[347441091,1735815043987,-1466.211553,0.0002,2]
[347441092,1735815043997,-1466.211553,0.0002,2]
[347441093,1735815044006,-151.0,0.0002,2]
[347441094,1735815044015,-151.0,0.0002,2]
[347441095,1735815044025,-151.0,0.0002,2]
[347441096,1735815044035,-1903.022593,0.0002,2]
[347441097,1735815044045,-402.325971,0.0002,2]
[347441098,1735815044055,-1903.022593,0.0002,2]
[347441099,1735815044065,-402.325971,0.0002,2]
[347441100,1735815044189,-151.0,0.0002,2]
[347441101,1735815044199,-151.0,0.0002,2]
[347441102,1735815044208,-151.0,0.0002,2]
[347441103,1735815044218,-151.0,0.0002,2]
[347441104,1735815044228,-924.919644,0.0002,2]
[347441105,1735815044238,-216.26,0.0002,3]
[347441106,1735815044247,-1009.031224,0.0002,2]
[347441107,1735815044257,-1009.031224,0.0002,2]
[347441108,1735815044267,-255.99,0.0002,3]
[347441109,1735815044276,-277.606569,0.0002,2]
[347441110,1735815044285,-277.606569,0.0002,2]
[347441111,1735815044295,-500.0,0.0002,3]
[347441112,1735815044309,-176.595803,0.0002,2]
[347441113,1735815044318,-176.595803,0.0002,2]
[347441114,1735815044328,-151.0,0.0002,2]
[347441115,1735815044339,-315.24,0.0002,3]
[347441116,1735815044348,-330.803929,0.0002,2]
[347441117,1735815044357,-544.52494127,0.0002,3]
[347441118,1735815044367,-330.803929,0.0002,2]
[347441119,1735815044377,-182.36386,0.0002,2]
[347441120,1735815044387,-182.36386,0.0002,2]
[347441121,1735815044396,-182.36386,0.0002,2]
[347441122,1735815044407,-182.36386,0.0002,2]
[347441123,1735815044416,-500.0,0.0002,3]
[347441124,1735815044426,-500.0,0.0002,3]
[347441125,1735815044436,-151.0,0.0002,2]
[347441126,1735815044445,-500.0,0.0002,3]
[347441127,1735815044455,-4793.71,0.0002,3]
[347441128,1735815044464,-151.0,0.0002,2]
[347441129,1735815044473,-151.0,0.0002,2]
[347441130,1735815044482,-611.7,0.0002,3]
[347441131,1735815044492,-685.32,0.0002,3]
[347441132,1735815044501,-668.76,0.0002,3]